bitfinex/quotes_SOLUSD_20250831
["timestamp","ask_amount","ask_price","bid_price","bid_amount"]
[1756650802910,0.06,203.33,203.29,4.59012331]
[1756650803126,0.06,203.33,203.3,0.72]
[1756650803412,0.06,203.33,203.3,5.31012331]
[1756650803712,0.06,203.33,203.31,5.31012331]
[1756650804317,0.06,203.33,203.32,0.72]
[1756650804501,0.06,203.33,203.32,5.31012331]
[1756650804905,0.06,203.33,203.32,5.6383553]
[1756650805215,0.06,203.33,203.32,10.22847861]
[1756650806604,0.06,203.33,203.32,5.6383553]
[1756650807132,0.06,203.33,203.32,0.72]
[1756650807938,14.783058,203.45,203.43,26.0]
[1756650808094,0.68,203.56,203.47,26.0]
[1756650808414,0.68,203.56,203.51,4.59012331]
[1756650808720,0.68,203.55,203.5,4.59012331]
[1756650808897,0.68,203.55,203.5,5.31012331]
[1756650809225,0.68,203.59,203.51,20.40299445]
[1756650809425,0.68,203.59,203.52,14.31559401]
[1756650809606,0.68,203.59,203.53,4.59012331]
[1756650810112,0.68,203.59,203.53,7.19856212]
[1756650810313,0.68,203.59,203.55,7.19856212]
[1756650810522,26.68,203.59,203.55,7.19856212]
[1756650810822,0.68,203.59,203.55,7.19856212]
[1756650811016,30.91100989,203.63,203.56,0.72]
[1756650811192,0.68,203.65,203.6,7.19856212]
[1756650811390,0.68,203.64,203.6,7.19856212]
[1756650811617,0.68,203.64,203.59,7.19856212]
[1756650812124,0.68,203.64,203.59,7.198562]
[1756650812490,0.68,203.63,203.59,7.198562]
[1756650812694,0.68,203.62,203.57,7.91856212]
[1756650812899,12.10919416,203.64,203.58,20.79415612]
[1756650813314,7.19856212,203.64,203.58,21.48415612]
[1756650813710,31.59039331,203.65,203.58,21.48415612]
[1756650813895,31.59039331,203.65,203.58,14.285594]
[1756650814095,31.59039331,203.65,203.58,21.48415612]
[1756650814322,0.68,203.64,203.58,13.595594]
[1756650814499,12.10991225,203.61,203.55,0.69]
[1756650814821,12.10991225,203.61,203.56,7.19856212]
[1756650815021,5.59135013,203.61,203.56,7.19856212]
[1756650815230,4.91135013,203.61,203.56,20.79415612]
[1756650815419,0.68,203.6,203.57,7.19856212]
[1756650816120,0.68,203.6,203.55,14.765596]
[1756650816321,0.68,203.6,203.56,7.19856212]
[1756650816709,4.91062659,203.64,203.56,7.19856212]
[1756650816914,4.91062659,203.64,203.55,14.765596]
[1756650816915,7.87856212,203.63,203.57,7.19856212]
[1756650817107,0.68,203.62,203.57,7.19856212]
[1756650817420,0.68,203.61,203.57,7.19856212]
[1756650818312,5.5914671,203.61,203.55,15.455596]
[1756650818515,5.5914671,203.61,203.56,7.19856212]
[1756650818733,5.5914671,203.61,203.57,7.19856212]
[1756650818937,30.91062659,203.64,203.59,7.19856212]
[1756650819304,31.59062659,203.64,203.59,7.88856212]
[1756650819628,0.68,203.63,203.59,0.69]
[1756650819927,7.87856212,203.63,203.59,0.69]
[1756650820129,12.78943484,203.63,203.57,7.88856212]
[1756650821004,0.68,203.62,203.56,7.19856212]
[1756650821234,7.87856212,203.62,203.56,7.19856212]
[1756650821539,7.19856212,203.59,203.53,7.19856212]
[1756650821905,7.19856212,203.58,203.53,14.767049]
[1756650822123,7.19856212,203.58,203.54,0.69]
[1756650822124,12.11070061,203.58,203.54,0.69]
[1756650822518,5.59213849,203.58,203.53,7.19856212]
[1756650822751,5.59213849,203.58,203.52,15.457049]
[1756650822752,0.68,203.57,203.52,22.65561112]
[1756650823019,7.19856212,203.58,203.52,22.65561112]
[1756650824025,7.87856212,203.58,203.52,22.65561112]
[1756650825028,12.79084454,203.58,203.52,22.65561112]
[1756650825327,7.19856212,203.55,203.49,7.88856212]
[1756650825533,7.19856212,203.55,203.49,22.65852012]
[1756650826032,7.19856212,203.55,203.49,7.88856212]
[1756650826226,7.87856212,203.56,203.5,7.88856212]
[1756650826738,7.19856212,203.54,203.5,0.69]
[1756650827031,12.11180406,203.54,203.5,0.69]
[1756650827733,12.79180406,203.54,203.5,0.69]
[1756650828309,12.79180406,203.54,203.49,7.198562]
[1756650828509,12.79180406,203.54,203.49,7.888562]
[1756650829326,5.59324194,203.54,203.5,0.69]
[1756650829509,0.68,203.54,203.5,0.69]
[1756650830247,9.48319948,203.55,203.5,0.69]
[1756650830529,10.16319948,203.55,203.5,0.69]
[1756650830738,0.68,203.54,203.5,0.69]
[1756650831033,0.68,203.54,203.49,4.5703408]
[1756650831237,0.68,203.54,203.49,5.2603408]
[1756650831413,0.68,203.54,203.5,4.5703408]
[1756650831612,0.68,203.54,203.49,5.2603408]
[1756650831935,10.16342176,203.54,203.49,0.69]
[1756650832130,10.16342176,203.54,203.5,0.69]
[1756650833732,4.5703408,203.51,203.47,0.69]
[1756650833939,4.5703408,203.5,203.45,0.03]
[1756650834108,4.5703408,203.47,203.45,0.03]
[1756650836346,9.48509385,203.47,203.45,0.03]
[1756650836518,5.2503408,203.46,203.45,0.03]
[1756650837032,10.1653118,203.46,203.45,0.03]
[1756650838623,50.3253118,203.46,203.45,0.03]
[1756650841224,10.1653118,203.46,203.45,0.03]
[1756650841435,0.68,203.52,203.45,0.72]
[1756650841650,4.5703408,203.48,203.45,0.72]
[1756650841951,4.5703408,203.49,203.46,0.66]
[1756650842141,4.5703408,203.48,203.46,0.66]
[1756650842518,4.5703408,203.47,203.45,0.03]
[1756650842941,4.5703408,203.48,203.46,0.66]
[1756650843323,45.72407683,203.5,203.46,0.66]
[1756650843522,4.5703408,203.48,203.46,0.66]
[1756650843923,45.01407683,203.5,203.46,0.66]
[1756650844125,4.5703408,203.49,203.47,0.66]
[1756650844340,4.5703408,203.49,203.45,0.03]
[1756650844541,4.5703408,203.49,203.47,0.66]
[1756650845317,4.5703408,203.49,203.45,0.69]
[1756650845524,4.5703408,203.49,203.45,0.03]
[1756650845728,4.5703408,203.49,203.46,0.66]
[1756650845921,0.71,203.51,203.46,0.66]
[1756650846121,39.9903408,203.61,203.47,5.2303408]
[1756650846438,4.5703408,203.55,203.49,4.5703408]
[1756650846748,4.5703408,203.55,203.5,0.66]
[1756650846951,4.5703408,203.55,203.5,5.2303408]
[1756650847116,4.5703408,203.55,203.51,0.66]
[1756650847442,4.5703408,203.55,203.52,0.66]
[1756650847618,0.06,203.56,203.52,0.66]
[1756650847819,0.06,203.56,203.51,4.5703408]
[1756650848046,0.06,203.56,203.51,9.48410425]
[1756650848248,4.6303408,203.56,203.52,0.66]
[1756650848748,0.06,203.56,203.53,4.5703408]
[1756650848925,0.06,203.56,203.54,5.2303408]
[1756650849349,0.06,203.56,203.55,0.66]
[1756650850342,0.06,203.56,203.55,5.2303408]
[1756650850946,0.06,203.56,203.55,0.66]
[1756650851833,0.06,203.56,203.55,5.57279783]
[1756650852440,0.06,203.56,203.55,0.66]
[1756650853257,0.06,203.56,203.55,10.14313863]
[1756650855748,0.06,203.56,203.55,23.73873264]
[1756650855951,0.01100299,203.56,203.55,23.73873264]
[1756650857355,0.01100299,203.56,203.55,10.14313863]
[1756650857561,0.01100299,203.56,203.52,4.5703408]
[1756650857859,5.29134379,203.56,203.51,0.66]
[1756650858161,0.72100299,203.56,203.52,4.5703408]
[1756650858462,0.72100299,203.56,203.52,5.2303408]
[1756650859749,0.01100299,203.56,203.52,5.2303408]
[1756650859951,0.72100299,203.56,203.52,5.2303408]
[1756650860664,4.5703408,203.54,203.49,0.66]
[1756650860852,5.2803408,203.53,203.47,4.5703408]
[1756650861163,5.2803408,203.53,203.47,5.2303408]
[1756650861351,5.2803408,203.53,203.47,0.66]
[1756650861558,5.2803408,203.53,203.47,5.2303408]
[1756650861862,4.5703408,203.52,203.47,5.2303408]
[1756650862160,5.2803408,203.52,203.47,5.2303408]
[1756650862939,4.5703408,203.52,203.47,5.2303408]
[1756650863458,0.71,203.52,203.48,0.66]
[1756650863667,5.2803408,203.54,203.49,0.66]
[1756650863963,5.2803408,203.54,203.49,5.2303408]
[1756650864163,5.2803408,203.54,203.49,10.14439092]
[1756650864364,4.5703408,203.5,203.45,0.03]
[1756650864584,0.71,203.53,203.45,0.03]
[1756650864585,4.5703408,203.49,203.45,0.03]
[1756650864747,0.71,203.48,203.45,0.03]
[1756650864937,5.2803408,203.48,203.45,0.03]
[1756650865150,0.71,203.47,203.45,0.03]
[1756650865478,5.2803408,203.48,203.45,0.03]
[1756650865777,5.2803408,203.46,203.45,0.03]
[1756650866654,10.1953118,203.46,203.45,0.03]
[1756650872648,5.624971,203.46,203.45,0.03]
[1756650872886,10.1953118,203.46,203.45,0.03]
[1756650875777,10.1953118,203.46,203.42,0.03]
[1756650875778,26.0,203.43,203.42,0.03]
[1756650875951,70.2503408,203.43,203.42,0.03]
[1756650876273,70.9103408,203.43,203.42,0.03]
[1756650877250,26.0,203.43,203.42,0.03]
[1756650877470,31.2303408,203.43,203.42,0.03]
[1756650877891,36.14603661,203.43,203.42,0.03]
[1756650879790,75.82603661,203.43,203.42,0.03]
[1756650880296,75.16603661,203.43,203.42,0.03]
[1756650880986,35.48603661,203.43,203.42,0.03]
[1756650881196,75.16603661,203.43,203.42,0.03]
[1756650881689,9.48603661,203.43,203.42,0.03]
[1756650881865,49.14603661,203.43,203.42,0.03]
[1756650883186,4.91448791,203.48,203.42,0.74]
[1756650883594,4.5703408,203.46,203.42,0.74]
[1756650885083,4.5703408,203.48,203.43,4.5703408]
[1756650885268,44.2103408,203.48,203.44,0.71]
[1756650886482,4.5703408,203.47,203.45,0.71]
[1756650886995,4.5703408,203.47,203.42,0.03]
[1756650887204,4.5703408,203.47,203.46,0.71]
[1756650887998,4.5703408,203.47,203.42,0.03]
[1756650887999,4.5703408,203.47,203.42,0.74]
[1756650888203,4.5703408,203.45,203.43,0.71]
[1756650888380,4.5703408,203.44,203.42,0.03]
[1756650888588,4.5703408,203.43,203.42,0.03]
[1756650888778,4.91529351,203.45,203.42,0.03]
[1756650888779,4.5703408,203.44,203.42,0.74]
[1756650890377,4.5703408,203.43,203.42,0.03]
[1756650890700,5.2303408,203.43,203.42,0.03]
[1756650891006,44.1303408,203.43,203.42,0.03]
[1756650892308,4.91536914,203.45,203.42,0.74]
[1756650892599,4.5703408,203.44,203.42,0.03]
[1756650893607,9.48582203,203.44,203.42,0.03]
[1756650893902,4.5703408,203.43,203.42,0.03]
[1756650895703,4.91548123,203.44,203.42,0.03]
[1756650895906,4.5703408,203.43,203.42,0.03]
[1756650896695,9.48603661,203.43,203.42,0.03]
[1756650900981,4.91569581,203.43,203.42,0.03]
[1756650901182,9.48603661,203.43,203.42,0.03]
[1756650901889,71.13542866,203.45,203.42,0.03]
[1756650902091,4.5703408,203.43,203.42,0.03]
[1756650902310,70.47542866,203.45,203.42,0.03]
[1756650902507,0.67,203.46,203.42,0.03]
[1756650902508,39.46,203.47,203.42,0.72]
[1756650902697,4.5703408,203.46,203.42,0.72]
[1756650903516,44.0303408,203.47,203.42,5.63585319]
[1756650903686,4.6303408,203.47,203.43,0.69]
[1756650903882,0.06,203.47,203.43,0.69]
[1756650904290,4.5703408,203.44,203.42,0.03]
[1756650904481,0.06,203.47,203.42,0.03]
[1756650904482,4.5703408,203.43,203.42,0.03]
[1756650904685,31.2403408,203.43,203.42,0.03]
[1756650905614,36.15603661,203.43,203.42,0.03]
[1756650905807,39.46063133,203.43,203.4,0.03]
[1756650905993,9.1406816,203.41,203.4,0.03]
[1756650906390,5.2403408,203.41,203.4,0.03]
[1756650906796,10.15651994,203.41,203.4,0.03]
[1756650907594,14.72686074,203.41,203.4,1e-08]
[1756650907809,18.03360134,203.41,203.4,1e-08]
[1756650907993,13.46326054,203.41,203.4,1e-08]
[1756650908416,13.4641338,203.41,203.4,1e-08]
[1756650909516,18.0344746,203.41,203.39,1e-08]
[1756650909819,77.86829546,203.4,203.39,1e-08]
[1756650910198,78.53829546,203.4,203.39,1e-08]
[1756650910917,26.0,203.37,203.29,0.69]
[1756650911212,4.5703408,203.31,203.29,0.69]
[1756650911610,4.5703408,203.31,203.3,0.69]
[1756650912410,4.5703408,203.31,203.25,4.5703408]
[1756650912713,4.5703408,203.3,203.28,0.69]
[1756650912900,4.5703408,203.3,203.29,0.69]
[1756650914119,4.5703408,203.31,203.29,0.69]
[1756650914307,4.5703408,203.31,203.3,0.69]
[1756650915506,4.91841189,203.32,203.3,0.19]
[1756650915699,4.5703408,203.31,203.26,4.5703408]
[1756650916199,0.67,203.35,203.3,4.5703408]
[1756650916200,4.5703408,203.35,203.3,4.5703408]
[1756650916512,4.5703408,203.35,203.29,4.5703408]
[1756650917323,4.5703408,203.35,203.29,9.48935611]
[1756650917723,4.5703408,203.35,203.3,0.69]
[1756650917918,4.5703408,203.35,203.31,0.69]
[1756650918411,4.5703408,203.35,203.29,9.48935611]
[1756650918611,39.32,203.37,203.32,0.69]
[1756650918832,39.32,203.37,203.33,0.69]
[1756650919015,4.5703408,203.36,203.31,4.5703408]
[1756650919212,4.5703408,203.36,203.33,0.69]
[1756650922526,4.5703408,203.36,203.32,4.91831902]
[1756650922749,43.8303408,203.38,203.34,0.69]
[1756650924334,39.26,203.38,203.34,5.2603408]
[1756650925011,39.93,203.38,203.34,5.2603408]
[1756650925410,39.26,203.38,203.34,5.2603408]
[1756650926626,39.89,203.39,203.35,4.5703408]
[1756650927557,39.89,203.39,203.36,4.5703408]
[1756650928443,39.22,203.39,203.36,4.5703408]
[1756650928756,0.67,203.38,203.36,4.5703408]
[1756650929971,0.67,203.38,203.35,4.5703408]
[1756650930123,0.73,203.38,203.35,4.5703408]
[1756650930543,5.64692187,203.38,203.35,4.5703408]
[1756650930729,5.58729383,203.37,203.3,5.60879596]
[1756650931057,0.67,203.36,203.29,4.94905912]
[1756650931223,4.91729383,203.37,203.29,4.94905912]
[1756650931224,0.67,203.35,203.33,4.5703408]
[1756650931429,39.83,203.36,203.33,4.5703408]
[1756650931641,0.67,203.35,203.33,4.5703408]
[1756650932549,0.71,203.35,203.33,4.5703408]
[1756650933841,4.91771382,203.35,203.33,4.5703408]
[1756650934044,0.71,203.34,203.33,4.5703408]
[1756650934553,5.62771382,203.35,203.33,4.5703408]
[1756650934864,5.62771382,203.35,203.3,0.69]
[1756650935040,5.62771382,203.35,203.33,4.5703408]
[1756650936132,0.71,203.35,203.33,4.5703408]
[1756650936339,39.16,203.36,203.33,4.5703408]
[1756650936560,39.87,203.36,203.33,4.5703408]
[1756650936748,39.12,203.37,203.34,5.2703408]
[1756650936954,39.12,203.37,203.32,0.7]
[1756650937150,0.06,203.38,203.35,4.5703408]
[1756650937662,0.71,203.37,203.33,0.7]
[1756650937958,0.71,203.37,203.35,4.5703408]
[1756650938162,0.77,203.38,203.35,4.5703408]
[1756650938748,0.77,203.38,203.34,4.5703408]
[1756650938955,0.77,203.38,203.34,5.2703408]
[1756650939254,0.77,203.38,203.34,0.7]
[1756650939465,0.77,203.38,203.34,5.2703408]
[1756650941060,4.97694563,203.38,203.29,38.948365]
[1756650941236,0.71,203.37,203.3,26.0]
[1756650941438,0.71,203.37,203.32,4.5703408]
[1756650941637,0.71,203.36,203.32,4.5703408]
[1756650941958,10.25728643,203.38,203.32,5.2703408]
[1756650942160,5.68694563,203.38,203.34,4.5703408]
[1756650942348,0.71,203.37,203.34,4.5703408]
[1756650943166,5.62714691,203.37,203.34,4.5703408]
[1756650944752,5.62714691,203.37,203.33,5.2703408]
[1756650945659,0.71,203.36,203.32,4.5703408]
[1756650945864,0.71,203.35,203.3,4.5703408]
[1756650946067,0.71,203.34,203.3,4.5703408]
[1756650946261,5.62714691,203.37,203.31,5.2703408]
[1756650946442,10.19748771,203.37,203.31,5.2703408]
[1756650946751,9.48748771,203.37,203.32,4.5703408]
[1756650946952,5.62759315,203.36,203.32,4.5703408]
[1756650949163,0.71,203.36,203.32,5.2703408]
[1756650949470,39.02,203.38,203.33,5.2703408]
[1756650949768,39.02,203.38,203.34,5.2703408]
[1756650950061,0.06,203.37,203.34,5.2703408]
[1756650950252,0.06,203.37,203.34,0.7]
[1756650950455,0.06,203.37,203.34,5.2703408]
[1756650950652,0.06,203.37,203.36,4.5703408]
[1756650950842,3.37475681,203.45,203.36,18.65767359]
[1756650951046,0.06,203.45,203.38,13.59559401]
[1756650951243,0.06,203.45,203.43,4.5703408]
[1756650951563,0.06,203.45,203.42,4.5703408]
[1756650951754,0.77,203.45,203.42,4.5703408]
[1756650951947,0.06,203.45,203.42,4.5703408]
[1756650953854,0.77,203.45,203.4,4.5703408]
[1756650954187,0.06,203.45,203.42,4.5703408]
[1756650954390,0.06,203.45,203.41,4.5703408]
[1756650954595,0.77,203.45,203.41,4.5703408]
[1756650954977,5.68535712,203.45,203.41,4.5703408]
[1756650956396,5.2803408,203.44,203.39,4.5703408]
[1756650956693,5.2803408,203.43,203.38,4.5703408]
[1756650956902,5.2803408,203.42,203.37,4.5703408]
[1756650957103,0.71,203.41,203.37,4.5703408]
[1756650958089,0.71,203.41,203.37,5.2703408]
[1756650958801,4.91605158,203.42,203.37,5.2703408]
[1756650959100,5.2803408,203.41,203.36,4.5703408]
[1756650959302,4.5703408,203.39,203.3,4.94862506]
[1756650959492,5.2803408,203.38,203.32,5.2703408]
[1756650959992,5.2803408,203.38,203.33,4.5703408]
[1756650960300,0.71,203.38,203.34,0.7]
[1756650960603,4.5703408,203.36,203.31,5.970341]
[1756650960803,39.08,203.4,203.34,4.5703408]
[1756650960804,4.5703408,203.4,203.34,4.5703408]
[1756650960986,26.0,203.38,203.35,4.5703408]
[1756650961379,26.0,203.38,203.34,5.2703408]
[1756650961891,0.71,203.37,203.32,4.5703408]
[1756650962484,10.19766528,203.37,203.32,4.5703408]
[1756650962793,10.19766528,203.37,203.32,5.2503408]
[1756650963310,39.79,203.36,203.3,0.03]
[1756650963511,4.5703408,203.34,203.3,0.03]
[1756650964109,5.2803408,203.33,203.3,0.03]
[1756650964280,0.71,203.38,203.31,5.2503408]
[1756650964475,5.2803408,203.37,203.31,5.2503408]
[1756650964688,0.71,203.37,203.32,4.5703408]
[1756650964911,4.5703408,203.38,203.33,4.5703408]
[1756650965096,5.2803408,203.39,203.34,0.68]
[1756650965432,5.2803408,203.38,203.33,4.5703408]
[1756650965576,5.2803408,203.38,203.33,5.2503408]
[1756650965783,4.5703408,203.39,203.34,5.2503408]
[1756650966090,4.5703408,203.4,203.35,5.2503408]
[1756650966290,4.91666256,203.39,203.35,5.2503408]
[1756650966711,39.1,203.41,203.36,0.68]
[1756650967004,0.71,203.42,203.37,5.2503408]
[1756650968013,10.19641751,203.42,203.36,4.5703408]
[1756650968977,26.06,203.45,203.38,4.5703408]
[1756650969185,0.06,203.45,203.42,4.5703408]
[1756650969384,0.06,203.45,203.41,4.5703408]
[1756650969581,0.77,203.45,203.41,4.5703408]
[1756650970216,0.06,203.45,203.41,5.2503408]
[1756650970504,0.06,203.45,203.39,13.59559401]
[1756650970690,0.06,203.45,203.41,4.5703408]
[1756650971199,0.06,203.45,203.41,0.68]
[1756650971402,0.06,203.45,203.41,5.2503408]
[1756650972484,0.06,203.45,203.41,0.68]
[1756650972685,0.06,203.45,203.41,5.2503408]
[1756650974309,0.06,203.45,203.41,4.5703408]
[1756650974520,0.06,203.45,203.42,5.2503408]
[1756650975697,0.06,203.45,203.42,0.68]
[1756650975897,0.06,203.45,203.42,5.2503408]
[1756650976412,0.06,203.45,203.41,4.5703408]
[1756650976710,0.06,203.45,203.41,5.2503408]
[1756650977598,0.06,203.45,203.41,4.5703408]
[1756650977909,0.71,203.44,203.39,4.5703408]
[1756650978115,4.6303408,203.45,203.4,0.68]
[1756650978308,4.6303408,203.45,203.39,4.5703408]
[1756650978309,0.71,203.44,203.39,4.5703408]
[1756650978509,0.71,203.44,203.39,5.2503408]
[1756650979103,0.06,203.45,203.4,5.2503408]
[1756650979298,0.06,203.45,203.41,5.2503408]
[1756650979900,0.06,203.45,203.41,4.5703408]
[1756650980115,0.06,203.45,203.42,0.68]
[1756650980306,0.06,203.45,203.41,4.5703408]
[1756650980702,0.06,203.45,203.41,5.2503408]
[1756650981019,5.2803408,203.44,203.39,4.5703408]
[1756650981212,5.62569581,203.43,203.38,4.5703408]
[1756650981394,10.19603661,203.43,203.38,5.2503408]
[1756650981902,5.62569581,203.43,203.38,5.2503408]
[1756650982803,5.62569581,203.43,203.38,0.68]
[1756650982999,5.2803408,203.42,203.37,4.5703408]
[1756650983202,5.62617914,203.41,203.37,4.5703408]
[1756650983731,5.62617914,203.41,203.33,0.03]
[1756650983732,30.5703408,203.38,203.33,0.03]
[1756650983897,4.5703408,203.35,203.33,0.03]
[1756650984316,5.2803408,203.35,203.33,0.03]
[1756650984733,5.2803408,203.34,203.33,0.03]
[1756650985396,4.91714608,203.37,203.33,0.03]
[1756650985718,9.48748688,203.37,203.33,0.71]
[1756650986111,10.19748688,203.37,203.33,0.03]
[1756650987509,9.48748688,203.37,203.33,0.03]
[1756650987815,5.2803408,203.36,203.33,0.03]
[1756650988018,4.5703408,203.35,203.33,0.03]
[1756650988224,5.2803408,203.35,203.33,0.03]
[1756650988605,0.71,203.35,203.33,0.03]
[1756650989009,5.2803408,203.35,203.33,0.03]
[1756650989336,0.71,203.35,203.33,0.03]
[1756650989541,5.2803408,203.35,203.33,0.03]
[1756650990021,10.19801735,203.35,203.33,0.03]
[1756650990522,9.48801735,203.35,203.33,0.03]
[1756650990827,5.2803408,203.34,203.33,0.03]
[1756650991324,10.19821234,203.34,203.33,0.03]
[1756650991624,0.71,203.37,203.33,0.03]
[1756650991834,5.2803408,203.37,203.33,0.03]
[1756650992006,4.5703408,203.37,203.33,0.71]
[1756650992701,0.72,203.39,203.34,5.2503408]
[1756650992932,9.48679148,203.4,203.35,5.2503408]
[1756650993103,10.20679148,203.4,203.35,5.2503408]
[1756650993741,0.72,203.4,203.35,5.2503408]
[1756650993910,5.63643333,203.4,203.35,5.2503408]
[1756650994705,30.81314259,203.41,203.36,5.2503408]
[1756650994912,31.53314259,203.41,203.36,5.2503408]
[1756650995231,26.96280179,203.41,203.36,5.2503408]
[1756650995407,0.72,203.4,203.36,4.5703408]
[1756650996821,0.72,203.4,203.35,4.5703408]
[1756650997808,0.72,203.4,203.35,5.2503408]
[1756650999307,0.72,203.4,203.35,10.16796639]
[1756650999510,0.72,203.4,203.35,0.68]
[1756650999723,0.72,203.4,203.36,4.5703408]
[1756651000029,4.5703408,203.37,203.33,0.03]
[1756651000330,0.72,203.36,203.33,0.03]
[1756651000520,26.0,203.38,203.34,0.68]
[1756651000828,26.72,203.38,203.34,0.68]
[1756651001133,26.72,203.38,203.34,4.5703408]
[1756651001429,31.63694754,203.38,203.34,4.5703408]
[1756651002029,38.92,203.39,203.35,4.5703408]
[1756651002212,38.92,203.39,203.35,5.2503408]
[1756651002402,39.64,203.39,203.35,4.5703408]
[1756651002609,39.64,203.39,203.34,4.5703408]
[1756651002835,39.64,203.39,203.34,5.2503408]
[1756651003216,39.64,203.39,203.34,0.68]
[1756651003422,4.5703408,203.4,203.35,5.2503408]
[1756651003620,5.2903408,203.4,203.35,10.16788974]
[1756651004018,0.72,203.4,203.35,10.16788974]
[1756651004420,26.24280179,203.41,203.36,5.2503408]
[1756651004732,26.24280179,203.41,203.38,4.5703408]
[1756651005515,26.24280179,203.41,203.38,9.48723175]
[1756651005720,0.06,203.39,203.38,10.16723175]
[1756651006112,0.06,203.39,203.38,4.5703408]
[1756651006836,0.06,203.39,203.38,36.16724511]
[1756651008823,0.06,203.39,203.38,30.91690431]
[1756651009130,0.06,203.39,203.38,30.5703408]
[1756651010452,0.06,203.39,203.38,35.48724511]
[1756651010621,0.06,203.39,203.38,36.16724511]
[1756651010818,0.06,203.39,203.38,35.48724511]
[1756651011011,0.06,203.39,203.38,88.60283912]
[1756651011206,0.06,203.39,203.38,93.17317992]
[1756651011406,0.06,203.39,203.38,107.94822992]
[1756651011633,0.06,203.39,203.38,103.37788912]
[1756651012010,22.610585,203.41,203.38,103.37788912]
[1756651012206,22.610585,203.41,203.4,18.16593481]
[1756651012734,0.06,203.42,203.41,13.59559401]
[1756651012923,0.06,203.42,203.41,23.76211395]
[1756651014343,0.06,203.42,203.41,23.08211395]
[1756651016334,0.06,203.42,203.41,23.76211395]
[1756651018812,0.06,203.42,203.41,62.54211395]
[1756651019628,0.06,203.42,203.41,61.86211395]
[1756651020223,0.06,203.42,203.41,62.54211395]
[1756651021862,0.06,203.42,203.41,64.47202295]
[1756651022026,0.06,203.42,203.41,25.73202295]
[1756651022345,0.06,203.42,203.41,64.47202295]
[1756651022931,1e-08,203.42,203.41,90.47202295]
[1756651023265,0.01102665,203.44,203.43,26.0]
[1756651023434,0.01102665,203.44,203.43,69.3103408]
[1756651023757,0.01102665,203.44,203.43,70.0103408]
[1756651023936,0.01102665,203.44,203.43,71.9799598]
[1756651024745,0.01102665,203.44,203.43,38.15565561]
[1756651024949,0.01102665,203.44,203.43,37.45565561]
[1756651025128,0.01102665,203.44,203.43,76.89565561]
[1756651025843,0.01102665,203.44,203.43,38.15565561]
[1756651026152,0.01102665,203.44,203.43,81.8748277]
[1756651028150,0.01102665,203.44,203.43,95.47042171]
[1756651028765,0.01102665,203.44,203.43,85.46008091]
[1756651028944,0.01102665,203.44,203.43,129.47042171]
[1756651033071,0.06,203.45,203.43,129.47042171]
[1756651033246,0.06,203.45,203.44,18.16593481]
[1756651033450,0.06,203.45,203.44,18.86593481]
[1756651033661,0.06,203.45,203.44,20.83526281]
[1756651034552,0.06,203.45,203.44,20.13526281]
[1756651034951,0.06,203.45,203.44,58.87526281]
[1756651035266,0.06,203.45,203.44,63.79071699]
[1756651036173,0.06,203.45,203.44,63.77071699]
[1756651036667,0.06,203.45,203.44,59.05071699]
[1756651036867,0.06,203.45,203.44,97.77071699]
[1756651038055,0.75,203.45,203.44,20.48037619]
[1756651038355,0.06,203.45,203.44,63.77071699]
[1756651038562,0.75,203.45,203.44,63.77071699]
[1756651038759,0.06,203.45,203.44,63.77071699]
[1756651039476,0.06,203.45,203.44,64.47071699]
[1756651040071,0.06,203.45,203.44,63.77071699]
[1756651040371,0.06,203.45,203.44,64.47071699]
[1756651040867,0.06,203.45,203.44,64.50071699]
[1756651041068,0.06,203.45,203.44,98.50071699]
[1756651041270,0.06,203.47,203.46,4.5703408]